fUST/lending_fUST_20260113
["ID","MTS","AMOUNT","RATE_DAILY","PERIOD"]
[401500441,1768275040673,-500.0,0.00011494,2]
[401500443,1768275040688,-500.0,0.00011494,2]
[401500445,1768275040697,-500.0,0.00011494,2]
[401500447,1768275040707,-500.0,0.00011494,2]
[401500449,1768275040717,-500.0,0.00011494,2]
[401500451,1768275040726,-500.0,0.00011494,2]
[401500453,1768275040736,-500.0,0.00011494,2]
[401500455,1768275040744,-500.0,0.00011494,2]
[401500457,1768275040754,-500.0,0.00011494,2]
[401500458,1768275040763,-500.0,0.00011494,2]
[401500460,1768275040773,-500.0,0.00011494,2]
[401500463,1768275040783,-500.0,0.00011494,2]
[401500465,1768275040792,-500.0,0.00011494,2]
[401500467,1768275040802,-550.0,0.00011494,2]
[401500470,1768275040822,-500.0,0.00011494,2]
[401500472,1768275040832,-500.0,0.00011494,2]
[401500474,1768275040842,-500.0,0.00011494,2]
[401500476,1768275040852,-500.0,0.00011494,2]
[401500478,1768275040862,-500.0,0.00011494,2]
[401500480,1768275040871,-500.0,0.00011494,2]
[401500482,1768275040881,-500.0,0.00011494,2]
[401500484,1768275040891,-650.0,0.00011494,2]
[401500486,1768275040900,-500.0,0.00011494,2]
[401500488,1768275040913,-500.0,0.00011494,2]
[401500490,1768275040923,-500.0,0.00011494,2]
[401500492,1768275040934,-389.98071161,0.00011494,2]
[401500494,1768275040944,-500.0,0.00011494,2]
[401500496,1768275040956,-500.0,0.00011494,2]
[401500498,1768275040965,-500.0,0.00011494,2]
[401500500,1768275040975,-500.0,0.00011494,2]
[401500502,1768275040986,-500.0,0.00011494,2]
[401500504,1768275040996,-500.0,0.00011494,2]
[401500506,1768275041006,-450.0,0.00011494,2]
[401500508,1768275041015,-500.0,0.00011494,2]
[401500510,1768275041025,-500.0,0.00011494,2]
[401500512,1768275041036,-500.0,0.00011494,2]
[401500514,1768275041046,-500.0,0.00011494,2]
[401500516,1768275041056,-550.0,0.00011494,2]
[401500519,1768275041065,-500.0,0.00011494,2]
[401500521,1768275041075,-500.0,0.00011494,2]
[401500523,1768275041084,-500.0,0.00011494,2]
[401500524,1768275041094,-500.0,0.00011494,2]
[401500527,1768275041103,-500.0,0.00011494,2]
[401500529,1768275041113,-500.0,0.00011494,2]
[401500531,1768275041122,-500.0,0.00011494,2]
[401500533,1768275041132,-500.0,0.00011494,2]
[401500535,1768275041142,-500.0,0.00011494,2]
[401500537,1768275041152,-500.0,0.00011494,2]
[401500539,1768275041161,-616.66309308,0.00011494,2]
[401500541,1768275041170,-153.70982773,0.00011496,2]
[401500543,1768275041180,-331.60972123,0.00011498,2]
[401500545,1768275041189,-462.2385433,0.00011498,2]
[401500547,1768275041199,-151.92792732,0.00011498,2]
[401500549,1768275041208,-151.83334327,0.00011498,2]
[401500551,1768275041217,-500.0,0.00011498,2]
[401500553,1768275041227,-215.14682625,0.00011498,2]
[401500555,1768275041236,-180.729,0.00011498,2]
[401500557,1768275041246,-545.98063895,0.00011499,2]
[401500559,1768275041256,-500.0,0.00011499,2]
[401500561,1768275041266,-500.0,0.00011499,2]
[401500563,1768275041275,-500.0,0.00011499,2]
[401500565,1768275041285,-500.0,0.00011499,2]
[401500567,1768275041295,-500.0,0.00011499,2]
[401500569,1768275041304,-500.0,0.00011499,2]
[401500571,1768275041314,-611.01028287,0.00011499,2]
[401500573,1768275041323,-500.0,0.00011499,2]
[401500575,1768275041336,-500.0,0.00011499,2]
[401500577,1768275041346,-151.0,0.000115,2]
[401500579,1768275041355,-151.0,0.000115,2]
[401500581,1768275041364,-151.0,0.000115,2]
[401500583,1768275041374,-151.0,0.000115,2]
[401500586,1768275041383,-151.0,0.000115,2]
[401500588,1768275041393,-151.0,0.000115,2]
[401500590,1768275041402,-151.0,0.000115,2]
[401500592,1768275041412,-151.0,0.000115,2]
[401500594,1768275041421,-151.0,0.000115,2]
[401500596,1768275041432,-151.0,0.000115,2]
[401500597,1768275041441,-151.0,0.000115,2]
[401500599,1768275041451,-151.0,0.000115,2]
[401500601,1768275041462,-151.0,0.000115,2]
[401500604,1768275041472,-151.0,0.000115,2]
[401500606,1768275041482,-151.0,0.000115,2]
[401500607,1768275041493,-151.0,0.000115,2]
[401500610,1768275041503,-151.0,0.000115,2]
[401500612,1768275041512,-151.0,0.000115,2]
[401500614,1768275041523,-151.0,0.000115,2]
[401500615,1768275041533,-151.27013683,0.00011635,2]
[401500617,1768275041543,-155.79052665,0.00011635,2]
[401500619,1768275041553,-159.58454421,0.00011635,2]
[401500622,1768275041563,-151.1185966,0.00011635,2]
[401500623,1768275041572,-202.17413332,0.00011635,2]
[401500626,1768275041582,-161.32015771,0.00011635,2]
[401500628,1768275041591,-300.0,0.00011729,2]
[401500630,1768275041602,-300.0,0.00011729,2]
[401500632,1768275041612,-300.0,0.00011729,2]
[401500634,1768275041621,-300.0,0.00011729,2]
[401500636,1768275041631,-300.0,0.00011729,2]
[401500638,1768275041640,-300.0,0.00011729,2]
[401500640,1768275041649,-300.0,0.00011729,2]
[401500642,1768275041659,-300.0,0.00011729,2]
[401500644,1768275041668,-300.0,0.00011729,2]
[401500646,1768275041678,-300.0,0.00011729,2]
[401500648,1768275041687,-300.0,0.00011729,2]
[401500650,1768275041696,-300.0,0.00011729,2]
[401500652,1768275041706,-300.0,0.00011729,2]
[401500654,1768275041715,-300.0,0.00011729,2]
[401500656,1768275041725,-300.0,0.00011729,2]
[401500658,1768275041734,-600.0,0.00011729,2]
[401500660,1768275041743,-216.04463808,0.00011909,2]
[401500662,1768275041752,-152.47392914,0.00011909,2]
[401500664,1768275041762,-231.4642444,0.00011909,2]
[401500666,1768275041771,-1214.66986018,0.00012111,2]
[401500668,1768275041780,-567.97,0.00012329,2]
[401500670,1768275041789,-473.31,0.00012329,2]
[401500672,1768275041798,-394.43,0.00012329,2]
[401500674,1768275041807,-328.69,0.00012329,2]
[401500676,1768275041816,-273.91,0.00012329,2]
[401500678,1768275041826,-228.25,0.00012329,2]
[401500680,1768275041835,-190.21,0.00012329,2]
[401500682,1768275041844,-158.51,0.00012329,2]
[401500684,1768275041854,-792.58,0.00012329,2]
[401500686,1768275041864,-500.0,0.00012329,2]
[401500688,1768275041873,-500.0,0.00012329,2]
[401500690,1768275041883,-500.0,0.00012329,2]
[401500692,1768275041893,-500.0,0.00012329,2]
[401500694,1768275041903,-500.0,0.00012329,2]
[401500696,1768275041916,-382.11050008,0.00012329,2]
[401500698,1768275041925,-500.0,0.00012329,2]
[401500700,1768275041935,-500.0,0.00012329,2]
[401500702,1768275041946,-500.0,0.00012329,2]
[401500715,1768275042068,-500.0,0.00012329,2]
[401500717,1768275042078,-500.0,0.00012329,2]
[401500719,1768275042087,-420.0,0.00012369,2]
[401500721,1768275042096,-420.0,0.00012369,2]
[401500723,1768275042106,-1680.0,0.00012385,2]
[401500725,1768275042115,-720.0,0.00012902,2]
[401500727,1768275042125,-7145.02897959,0.00013,2]
[401500729,1768275042134,-4389.9822527,0.0001308,2]
[401500731,1768275042144,-424.77937452,0.00013224,2]
[401500733,1768275042154,-500.0,0.00013273,2]
[401500735,1768275042163,-500.0,0.00013273,2]
[401500737,1768275042173,-500.0,0.00013273,2]
[401500739,1768275042182,-500.0,0.00013273,2]
[401500741,1768275042191,-500.0,0.00013273,2]
[401500743,1768275042200,-500.0,0.00013273,2]
[401500745,1768275042209,-500.0,0.00013273,2]
[401500747,1768275042218,-500.0,0.00013273,2]
[401500749,1768275042228,-500.35980856,0.00013273,2]
[401500751,1768275042236,-500.0,0.00013273,2]
[401500753,1768275042246,-500.0,0.00013273,2]
[401500755,1768275042255,-500.0,0.00013273,2]
[401500757,1768275042264,-500.0,0.00013273,2]
[401500759,1768275042273,-500.0,0.00013273,2]
[401500761,1768275042283,-500.0,0.00013273,2]
[401500763,1768275042292,-500.0,0.00013273,2]
[401500765,1768275042301,-500.0,0.00013273,2]
[401500767,1768275042310,-500.0,0.00013273,2]
[401500769,1768275042319,-500.47876979,0.00013273,2]
[401500771,1768275042328,-588.05171808,0.00013273,2]
[401500773,1768275042337,-500.0,0.00013273,2]
[401500775,1768275042347,-500.0,0.00013273,2]
[401500777,1768275042356,-500.26663269,0.00013273,2]
[401500779,1768275042365,-500.0,0.00013273,2]
[401500781,1768275042374,-500.0,0.00013273,2]
[401500783,1768275042383,-500.0,0.00013273,2]
[401500785,1768275042392,-500.0,0.00013273,2]
[401500787,1768275042402,-500.0,0.00013273,2]
[401500789,1768275042411,-500.0,0.00013273,2]
[401500791,1768275042420,-500.0,0.00013273,2]
[401500793,1768275042429,-500.0,0.00013273,2]
[401500795,1768275042439,-326.13161186,0.00013273,2]
[401500797,1768275042447,-500.0,0.00013273,2]
[401500799,1768275042456,-401.02939907,0.00013273,2]
[401500801,1768275042467,-500.0,0.00013273,2]
[401500803,1768275042475,-500.0,0.00013273,2]
[401500806,1768275042484,-500.0,0.00013273,2]
[401500808,1768275042493,-500.0,0.00013273,2]
[401500810,1768275042502,-500.0,0.00013273,2]
[401500812,1768275042511,-500.0,0.00013273,2]
[401500814,1768275042520,-500.0,0.00013273,2]
[401500815,1768275042529,-500.97359104,0.00013273,2]
[401500817,1768275042539,-500.0,0.00013273,2]
[401500819,1768275042548,-500.0,0.00013273,2]
[401500821,1768275042558,-500.0,0.00013273,2]
[401500823,1768275042567,-500.0,0.00013273,2]
[401500825,1768275042576,-979.537443,0.00013458,2]
[401500827,1768275042586,-482.0,0.00013589,2]
[401500829,1768275042595,-587.0,0.00013589,2]
[401500831,1768275042605,-2351.0,0.00013623,2]
[401500834,1768275042615,-300.0,0.00013673,2]
[401500835,1768275042624,-1756.61,0.00013698,2]
[401500837,1768275042633,-1756.61,0.00013698,2]
[401500839,1768275042642,-1756.61,0.00013698,2]
[401500841,1768275042651,-1756.61,0.00013698,2]
[401500844,1768275042660,-1756.61,0.00013698,2]
[401500845,1768275042669,-1756.61,0.00013698,2]
[401500848,1768275042679,-1756.61,0.00013698,2]
[401500849,1768275042688,-1756.61,0.00013698,2]
[401500851,1768275042696,-1756.61,0.00013698,2]
[401500853,1768275042705,-1756.61,0.00013698,2]
[401500855,1768275042715,-1756.61,0.00013698,2]
[401500857,1768275042724,-1756.61,0.00013698,2]
[401500859,1768275042732,-1756.61,0.00013698,2]
[401500861,1768275042740,-1756.61,0.00013698,2]
[401500863,1768275042749,-1756.61,0.00013698,2]
[401500865,1768275042759,-1756.61,0.00013698,2]
[401500867,1768275042768,-1756.61,0.00013698,2]
[401500869,1768275042777,-1756.61,0.00013698,2]
[401500871,1768275042787,-1756.61,0.00013698,2]
[401500873,1768275042796,-1756.61,0.00013698,2]
[401500875,1768275042805,-1756.61,0.00013698,2]
[401500877,1768275042814,-1756.61,0.00013698,2]
[401500879,1768275042823,-1756.61,0.00013698,2]
[401500881,1768275042832,-1756.71327693,0.00013698,2]
[401500883,1768275042841,-549.36623274,0.00013698,2]
[401500885,1768275042851,-500.0,0.00013698,2]
[401500887,1768275042861,-500.0,0.00013698,2]
[401500889,1768275042870,-500.0,0.00013698,2]
[401500891,1768275042879,-500.0,0.00013698,2]
[401500893,1768275042889,-500.0,0.00013698,2]
[401500895,1768275042898,-500.0,0.00013698,2]
[401500897,1768275042906,-500.0,0.00013698,2]
[401500899,1768275042919,-500.0,0.00013698,2]
[401500901,1768275042928,-500.0,0.00013698,2]
[401500903,1768275042937,-500.0,0.00013698,2]
[401500905,1768275042946,-500.0,0.00013698,2]
[401500907,1768275042956,-500.0,0.00013698,2]
[401500909,1768275042966,-500.0,0.00013698,2]
[401500911,1768275042976,-500.0,0.00013698,2]
[401500913,1768275042988,-500.0,0.00013698,2]
[401500916,1768275042997,-500.0,0.00013698,2]
[401500918,1768275043007,-510.44685129,0.00013698,2]
[401500920,1768275043017,-17382.1501575,0.00013699,2]
[401500923,1768275043028,-566.41732778,0.00013699,2]
[401500924,1768275043038,-500.0,0.00013699,2]
[401500926,1768275043048,-500.0,0.00013699,2]
[401500928,1768275043057,-500.0,0.00013699,2]
[401500930,1768275043066,-500.0,0.00013699,2]
[401500932,1768275043075,-500.0,0.00013699,2]
[401500934,1768275043085,-220.53016432,0.00013699,2]
[401500936,1768275043094,-500.0,0.00013699,2]
[401500938,1768275043104,-160.4090972,0.00013699,2]
[401500940,1768275043113,-500.49908429,0.00013699,2]
[401500942,1768275043123,-159.93663945,0.00013699,2]
[401500944,1768275043132,-304.42147658,0.00013699,2]
[401500946,1768275043141,-500.0,0.00013699,2]
[401500948,1768275043150,-411.20049965,0.00013699,2]
[401500950,1768275043160,-500.0,0.00013699,2]
[401500952,1768275043169,-500.0,0.00013699,2]
[401500954,1768275043178,-500.0,0.00013699,2]
[401500956,1768275043187,-500.51614754,0.00013699,2]
[401500958,1768275043196,-500.0,0.00013699,2]
[401500960,1768275043205,-500.0,0.00013699,2]
[401500962,1768275043214,-500.0,0.00013699,2]
[401500964,1768275043222,-500.0,0.00013699,2]
[401500966,1768275043231,-500.0,0.00013699,2]
[401500968,1768275043240,-160.71798276,0.00013699,2]
[401500970,1768275043249,-500.0,0.00013699,2]
[401500972,1768275043258,-159.9986767,0.00013699,2]
[401500974,1768275043267,-500.0,0.00013699,2]
[401500976,1768275043276,-500.0,0.00013699,2]
[401500978,1768275043285,-500.0,0.00013699,2]
[401500980,1768275043294,-500.0,0.00013699,2]
[401500982,1768275043303,-500.0,0.00013699,2]
[401500983,1768275043312,-500.0,0.00013699,2]
[401500986,1768275043321,-500.0,0.00013699,2]
[401500988,1768275043331,-500.0,0.00013699,2]
[401500990,1768275043340,-500.0,0.00013699,2]
[401500992,1768275043349,-500.0,0.00013699,2]
[401500994,1768275043358,-500.0,0.00013699,2]
[401500996,1768275043368,-500.0,0.00013699,2]
[401500998,1768275043377,-500.0,0.00013699,2]
[401501000,1768275043386,-500.0,0.00013699,2]
[401501002,1768275043396,-500.0,0.00013699,2]
[401501004,1768275043404,-588.25507052,0.00013699,2]
[401501006,1768275043414,-500.0,0.00013699,2]
[401501008,1768275043423,-500.0,0.00013699,2]
[401501010,1768275043432,-500.0,0.00013699,2]
[401501012,1768275043441,-227.1525335,0.00013699,2]
[401501014,1768275043450,-500.0,0.00013699,2]
[401501016,1768275043459,-500.0,0.00013699,2]
[401501017,1768275043469,-461.30308829,0.00013699,2]
[401501020,1768275043479,-500.0,0.00013699,2]
[401501022,1768275043488,-500.0,0.00013699,2]
[401501024,1768275043497,-500.0,0.00013699,2]
[401501025,1768275043506,-500.0,0.00013699,2]
[401501027,1768275043515,-500.42579638,0.00013699,2]
[401501029,1768275043524,-500.0,0.00013699,2]
[401501031,1768275043533,-417.43469078,0.00013699,2]
[401501033,1768275043542,-500.0,0.00013699,2]
[401501035,1768275043551,-500.0,0.00013699,2]
[401501037,1768275043560,-500.0,0.00013699,2]
[401501039,1768275043569,-313.26668117,0.00013699,2]
[401501041,1768275043578,-500.0,0.00013699,2]
[401501043,1768275043587,-500.0,0.00013699,2]
[401501045,1768275043596,-500.0,0.00013699,2]
[401501047,1768275043606,-500.0,0.00013699,2]
[401501048,1768275043615,-500.0,0.00013699,2]
[401501050,1768275043625,-500.0,0.00013699,2]
[401501052,1768275043636,-500.0,0.00013699,2]
[401501054,1768275043645,-501.77596466,0.00013699,2]
[401501056,1768275043656,-501.42407558,0.00013699,2]
[401501058,1768275043666,-500.0,0.00013699,2]
[401501060,1768275043676,-165.30359352,0.00013699,2]
[401501062,1768275043686,-243.29203364,0.00013699,2]
[401501064,1768275043695,-525.58016944,0.00013699,2]
[401501066,1768275043704,-347.01706539,0.00013699,2]
[401501068,1768275043714,-500.0,0.00013699,2]
[401501070,1768275043724,-500.0,0.00013699,2]
[401501072,1768275043745,-500.0,0.00013699,2]
[401501074,1768275043754,-500.0,0.00013699,2]
[401501077,1768275043763,-500.0,0.00013699,2]
[401501079,1768275043772,-500.0,0.00013699,2]
[401501081,1768275043781,-500.0,0.00013699,2]
[401501083,1768275043791,-500.0,0.00013699,2]
[401501085,1768275043800,-500.0,0.00013699,2]
[401501087,1768275043809,-500.0,0.00013699,2]
[401501090,1768275043818,-500.0,0.00013699,2]
[401501092,1768275043827,-500.0,0.00013699,2]
[401501094,1768275043835,-500.0,0.00013699,2]
[401501096,1768275043845,-163.92232768,0.00013699,2]
[401501098,1768275043854,-500.0,0.00013699,2]
[401501100,1768275043863,-158.64229108,0.00013699,2]
[401501102,1768275043872,-525.58268348,0.00013699,2]
[401501104,1768275043881,-500.0,0.00013699,2]
[401501106,1768275043890,-500.0,0.00013699,2]
[401501108,1768275043900,-159.67447117,0.00013699,2]
[401501110,1768275043912,-500.0,0.00013699,2]
[401501112,1768275043921,-500.0,0.00013699,2]
[401501114,1768275043930,-500.0,0.00013699,2]
[401501116,1768275043940,-500.0,0.00013699,2]
[401501118,1768275043951,-500.0,0.00013699,2]
[401501120,1768275043960,-442.19105582,0.00013699,2]
[401501121,1768275043969,-201.72675896,0.00013699,2]
[401501123,1768275043979,-1000.65920252,0.00013821,2]
[401501125,1768275043988,-1000.0,0.00013821,2]
[401501127,1768275043997,-1000.0,0.00013821,2]
[401501129,1768275044007,-1000.0,0.00013821,2]
[401501131,1768275044016,-1000.0,0.00013821,2]
[401501133,1768275044025,-1000.0,0.00013821,2]
[401501135,1768275044035,-799.1982595,0.00013821,2]
[401501137,1768275044043,-303.88205907,0.00013821,2]
[401501139,1768275044052,-1000.0,0.00013821,2]
[401501141,1768275044061,-1000.0,0.00013821,2]
[401501143,1768275044070,-1000.0,0.00013821,2]
[401501145,1768275044080,-1000.0,0.00013821,2]
[401501147,1768275044089,-1114.62780634,0.00013821,2]
[401501149,1768275044098,-1000.0,0.00013821,2]
[401501150,1768275044107,-958.892719,0.00013821,2]
[401501151,1768275044117,-290.80732737,0.00013821,2]
[401501152,1768275044126,-1000.0,0.00013821,2]
[401501153,1768275044135,-1000.0,0.00013821,2]
[401501154,1768275044144,-1000.0,0.00013821,2]
[401501155,1768275044153,-1000.0,0.00013821,2]
[401501156,1768275044162,-1000.0,0.00013821,2]
[401501157,1768275044171,-1000.0,0.00013821,2]
[401501158,1768275044180,-1000.0,0.00013821,2]
[401501159,1768275044189,-1000.0,0.00013821,2]
[401501160,1768275044197,-1000.0,0.00013821,2]
[401501161,1768275044206,-1000.0,0.00013821,2]
[401501162,1768275044215,-1000.0,0.00013821,2]
[401501163,1768275044224,-1000.0,0.00013821,2]
[401501164,1768275044233,-1000.0,0.00013821,2]
[401501165,1768275044242,-1001.09633075,0.00013821,2]
[401501166,1768275044251,-1000.0,0.00013821,2]
[401501167,1768275044261,-1000.0,0.00013821,2]
[401501168,1768275044359,-1000.0,0.00013821,2]
[401501169,1768275044369,-1000.0,0.00013821,2]
[401501170,1768275044378,-1000.0,0.00013821,2]
[401501171,1768275044387,-1000.0,0.00013821,2]
[401501172,1768275044396,-1000.0,0.00013821,2]
[401501173,1768275044406,-1000.0,0.00013821,2]
[401501174,1768275044415,-1000.0,0.00013821,2]
[401501175,1768275044424,-294.27582937,0.00013973,2]
[401501177,1768275044432,-5651.05214394,0.00014013,2]
[401501178,1768275044441,-560.01926747,0.00014013,2]
[401501180,1768275044450,-278.52492645,0.00014147,2]
[401501182,1768275044459,-864.0,0.00014192,2]
[401501184,1768275044469,-600.0,0.00014221,2]
[401501186,1768275044478,-1000.0,0.00014247,2]
[401501188,1768275044487,-1000.0,0.00014247,2]
[401501190,1768275044496,-1000.49621073,0.00014247,2]
[401501192,1768275044505,-500.83741654,0.00014247,2]
[401501194,1768275044515,-434.67101303,0.00014247,2]
[401501196,1768275044524,-1000.0,0.00014247,2]
[401501198,1768275044535,-500.64638554,0.00014247,2]
[401501200,1768275044545,-1000.0,0.00014247,2]
[401501202,1768275044555,-611.04327905,0.00014247,2]
[401501204,1768275044564,-1000.0,0.00014247,2]
[401501206,1768275044573,-1000.0,0.00014247,2]
[401501208,1768275044583,-500.51768931,0.00014247,2]
[401501210,1768275044593,-1000.0,0.00014247,2]
[401501212,1768275044602,-1000.0,0.00014247,2]
[401501214,1768275044611,-1000.0,0.00014247,2]
[401501216,1768275044620,-1000.0,0.00014247,2]
[401501218,1768275044630,-612.66128836,0.00014247,2]
[401501220,1768275044639,-1000.0,0.00014247,2]
[401501222,1768275044649,-1002.26984484,0.00014247,2]
[401501224,1768275044658,-1000.0,0.00014247,2]
[401501226,1768275044667,-1000.0,0.00014247,2]
[401501228,1768275044676,-250.18055217,0.00014247,2]
[401501230,1768275044686,-1000.0,0.00014247,2]
[401501232,1768275044696,-1000.0,0.00014247,2]
[401501234,1768275044705,-1000.0,0.00014247,2]
[401501236,1768275044714,-1000.0,0.00014247,2]
[401501238,1768275044723,-1000.0,0.00014247,2]
[401501240,1768275044732,-253.09886565,0.00014247,2]
[401501241,1768275044741,-1000.0,0.00014247,2]
[401501242,1768275044750,-1000.0,0.00014247,2]
[401501243,1768275044760,-1000.0,0.00014247,2]
[401501244,1768275044770,-1000.27165154,0.00014247,2]
[401501245,1768275044779,-501.49945315,0.00014247,2]
[401501247,1768275044789,-1000.0,0.00014247,2]
[401501248,1768275044798,-502.91564537,0.00014247,2]
[401501249,1768275044807,-1000.0,0.00014247,2]
[401501250,1768275044816,-1000.0,0.00014247,2]
[401501251,1768275044826,-1000.0,0.00014247,2]
[401501252,1768275044835,-500.48850434,0.00014247,2]
[401501253,1768275044844,-1000.0,0.00014247,2]
[401501254,1768275044854,-777.32796864,0.00014247,2]
[401501255,1768275044863,-500.63728057,0.00014247,2]
[401501256,1768275044882,-1000.0,0.00014247,2]
[401501257,1768275044894,-1000.0,0.00014247,2]
[401501258,1768275044904,-1000.0,0.00014247,2]
[401501259,1768275044916,-1000.0,0.00014247,2]
[401501260,1768275044930,-367.96711372,0.00014247,2]
[401501261,1768275044940,-500.7779163,0.00014247,2]
[401501262,1768275044951,-1000.0,0.00014247,2]
[401501263,1768275044960,-296.40350489,0.00014247,2]
[401501264,1768275044970,-1000.0,0.00014247,2]
[401501265,1768275044979,-1000.0,0.00014247,2]
[401501266,1768275044991,-1000.0,0.00014247,2]
[401501267,1768275045000,-1000.0,0.00014247,2]
[401501268,1768275045010,-1000.0,0.00014247,2]
[401501270,1768275045019,-1000.0,0.00014247,2]
[401501272,1768275045029,-298.99282252,0.00014247,2]
[401501274,1768275045039,-1000.0,0.00014247,2]
[401501275,1768275045048,-1000.0,0.00014247,2]
[401501276,1768275045057,-1000.0,0.00014247,2]
[401501277,1768275045066,-1000.0,0.00014247,2]
[401501278,1768275045076,-1000.0,0.00014247,2]
[401501279,1768275045085,-1000.0,0.00014247,2]
[401501280,1768275045095,-608.1301113,0.00014247,2]
[401501281,1768275045104,-1000.0,0.00014247,2]
[401501282,1768275045113,-1000.0,0.00014247,2]
[401501283,1768275045122,-1000.0,0.00014247,2]
[401501284,1768275045132,-1000.0,0.00014247,2]
[401501285,1768275045141,-1000.0,0.00014247,2]
[401501286,1768275045151,-1000.0,0.00014247,2]
[401501287,1768275045160,-1000.0,0.00014247,2]
[401501288,1768275045170,-1006.57632602,0.00014247,2]
[401501289,1768275045180,-647.12625165,0.00014247,2]
[401501290,1768275045189,-346.38117913,0.00014247,2]
[401501291,1768275045201,-500.0,0.00014341,2]
[401501292,1768275045212,-500.0,0.00014341,2]
[401501293,1768275045223,-500.0,0.00014341,2]
[401501294,1768275045233,-500.0,0.00014341,2]
[401501295,1768275045243,-500.0,0.00014341,2]
[401501296,1768275045253,-500.0,0.00014341,2]
[401501297,1768275045267,-500.0,0.00014341,2]
[401501298,1768275045278,-500.0,0.00014341,2]
[401501299,1768275045288,-500.0,0.00014341,2]
[401501300,1768275045298,-500.0,0.00014341,2]
[401501301,1768275045307,-500.0,0.00014341,2]
[401501302,1768275045316,-500.0,0.00014341,2]
[401501303,1768275045327,-373.37500189,0.00014341,2]
[401501304,1768275045337,-501.53674303,0.00014368,2]
[401501305,1768275045346,-1007.86170946,0.00014368,2]
[401501306,1768275045358,-1500.0,0.00014368,2]
[401501307,1768275045370,-1121.35319303,0.00014368,2]
[401501308,1768275045381,-1500.0,0.00014368,2]
[401501309,1768275045392,-1500.0,0.00014368,2]
[401501310,1768275045401,-1604.29070362,0.00014368,2]
[401501311,1768275045411,-1500.0,0.00014368,2]
[401501312,1768275045420,-1500.0,0.00014368,2]
[401501313,1768275045429,-1500.0,0.00014368,2]
[401501314,1768275045439,-424.06874761,0.00014368,2]
[401501315,1768275045447,-1500.0,0.00014368,2]
[401501316,1768275045456,-402.67173602,0.00014368,2]
[401501318,1768275045466,-1486.32296382,0.00014368,2]
[401501320,1768275045477,-1531.25796715,0.00014368,2]
[401501321,1768275045487,-1002.43740735,0.00014368,2]
[401501322,1768275045497,-1500.0,0.00014368,2]
[401501323,1768275045508,-764.84363887,0.00014368,2]
[401501324,1768275045519,-1500.0,0.00014368,2]
[401501325,1768275045530,-1001.10373896,0.00014368,2]
[401501326,1768275045542,-1499.37106653,0.00014368,2]
[401501327,1768275045553,-1500.0,0.00014368,2]
[401501328,1768275045563,-1500.0,0.00014368,2]
[401501329,1768275045577,-1500.0,0.00014368,2]
[401501330,1768275045588,-1500.0,0.00014368,2]
[401501331,1768275045601,-1501.96202407,0.00014368,2]
[401501332,1768275045610,-1500.0,0.00014368,2]
[401501334,1768275045619,-1500.0,0.00014368,2]
[401501335,1768275045631,-1500.0,0.00014368,2]
[401501336,1768275045643,-1001.124693,0.00014368,2]
[401501337,1768275045652,-1500.0,0.00014368,2]
[401501338,1768275045661,-1500.0,0.00014368,2]
[401501339,1768275045672,-5000.0,0.0001451,2]
[401501340,1768275045683,-100000.0,0.0001459,2]